fUST/lending_fUST_20260405
["ID","MTS","AMOUNT","RATE_DAILY","PERIOD"]
[419758652,1775357453110,-1000.0,0.00024421,2]
[419758654,1775357453119,-1000.0,0.00024421,2]
[419758656,1775357453128,-1000.0,0.00024421,2]
[419758658,1775357453137,-1000.0,0.00024421,2]
[419758660,1775357453146,-451.70411956,0.00024421,2]
[419758662,1775357453155,-1000.0,0.00024421,2]
[419758664,1775357453164,-1000.0,0.00024421,2]
[419758666,1775357453173,-1000.0,0.00024421,2]
[419758668,1775357453182,-1000.0,0.00024421,2]
[419758670,1775357453192,-1000.0,0.00024421,2]
[419758672,1775357453201,-1000.0,0.00024421,2]
[419758674,1775357453210,-165.17626971,0.00024427,2]
[419758676,1775357453219,-236.0,0.00024488,2]
[419758678,1775357453228,-2742.0,0.00024507,2]
[419758680,1775357453237,-930.7,0.0002452,2]
[419758681,1775357453245,-1000.0,0.00024521,2]
[419758683,1775357453254,-1000.0,0.00024521,2]
[419758685,1775357453263,-159.47663442,0.00024521,2]
[419758687,1775357453273,-1000.0,0.00024521,2]
[419758689,1775357453282,-1000.0,0.00024521,2]
[419758691,1775357453291,-1000.0,0.00024521,2]
[419758693,1775357453300,-893.71838121,0.00024521,2]
[419758695,1775357453308,-1000.0,0.00024521,2]
[419758697,1775357453318,-1000.0,0.00024521,2]
[419758699,1775357453327,-1000.0,0.00024521,2]
[419758701,1775357453335,-264.81232912,0.00024521,2]
[419758703,1775357453344,-1000.0,0.00024521,2]
[419758705,1775357453353,-1000.0,0.00024521,2]
[419758707,1775357453362,-1000.0,0.00024521,2]
[419758708,1775357453371,-1000.0,0.00024521,2]
[419758710,1775357453381,-1000.0,0.00024521,2]
[419758712,1775357453390,-1000.0,0.00024521,2]
[419758714,1775357453399,-426.53239905,0.00024521,2]
[419758716,1775357453408,-1000.0,0.00024521,2]
[419758718,1775357453417,-250.0,0.00024521,2]
[419758720,1775357453426,-1000.0,0.00024521,2]
[419758722,1775357453435,-1000.0,0.00024521,2]
[419758724,1775357453444,-151.0,0.00024532,2]
[419758726,1775357453453,-151.0,0.00024532,2]
[419758728,1775357453462,-151.0,0.00024532,2]
[419758730,1775357453471,-151.0,0.00024532,2]
[419758731,1775357453479,-151.0,0.00024532,2]
[419758733,1775357453488,-239.077172,0.00024532,2]
[419758735,1775357453498,-239.077172,0.00024532,2]
[419758737,1775357453507,-239.077172,0.00024532,2]
[419758739,1775357453516,-239.077172,0.00024532,2]
[419758741,1775357453525,-236.0,0.00024541,2]
[419758743,1775357453535,-236.0,0.00024546,2]
[419758745,1775357453544,-236.0,0.00024609,2]
[419758747,1775357453552,-399.95251072,0.00024612,2]
[419758749,1775357453561,-236.0,0.00024617,2]
[419758751,1775357453570,-2487.15318209,0.00024628,2]
[419758753,1775357453580,-236.0,0.00024638,2]
[419758755,1775357453590,-655913.16840293,0.00024651,2]
[419758757,1775357453600,-152.039204,0.00024651,2]
[419758759,1775357453609,-151.0,0.00024651,2]
[419758761,1775357453618,-151.0,0.00024651,2]
[419758763,1775357453627,-151.0,0.00024651,2]
[419758765,1775357453636,-151.0,0.00024651,2]
[419758767,1775357453645,-151.0,0.00024651,2]
[419758769,1775357453655,-252.07296612,0.00024651,2]
[419758771,1775357453664,-239.077172,0.00024651,2]
[419758773,1775357453673,-239.077172,0.00024651,2]
[419758775,1775357453682,-239.077172,0.00024651,2]
[419758776,1775357453691,-239.077172,0.00024651,2]
[419758778,1775357453701,-203.47737333,0.00024673,2]
[419758780,1775357453710,-338.61054711,0.00024673,2]
[419758782,1775357453719,-500.0,0.00024673,2]
[419758784,1775357453729,-500.0,0.00024673,2]
[419758786,1775357453738,-500.0,0.00024673,2]
[419758788,1775357453747,-500.0,0.00024673,2]
[419758790,1775357453755,-500.0,0.00024673,2]
[419758792,1775357453764,-500.0,0.00024673,2]
[419758794,1775357453774,-500.0,0.00024673,2]
[419758796,1775357453783,-500.0,0.00024673,2]
[419758798,1775357453791,-500.0,0.00024673,2]
[419758800,1775357453802,-500.0,0.00024673,2]
[419758802,1775357453812,-500.0,0.00024673,2]
[419758804,1775357453821,-311.00543269,0.00024673,2]
[419758806,1775357453831,-500.0,0.00024673,2]
[419758808,1775357453840,-500.0,0.00024673,2]
[419758810,1775357453849,-500.0,0.00024673,2]
[419758812,1775357453858,-500.0,0.00024673,2]
[419758814,1775357453868,-727.5380292,0.00024681,2]
[419758816,1775357453877,-2000.0,0.00024744,2]
[419758818,1775357453887,-2000.0,0.00024744,2]
[419758820,1775357453896,-930.7,0.00024751,2]
[419758822,1775357453906,-1508.13493713,0.00024781,2]
[419758824,1775357453915,-2000.0,0.00024781,2]
[419758826,1775357453924,-2000.0,0.00024781,2]
[419758828,1775357453933,-2000.0,0.00024781,2]
[419758830,1775357453943,-172.33440528,0.00024837,2]
[419758832,1775357453953,-2742.0,0.00024839,2]
[419758834,1775357453962,-6494.24669007,0.00024868,2]
[419758836,1775357453972,-555.68251316,0.00024873,2]
[419758838,1775357453981,-500.0,0.00024873,2]
[419758848,1775357454061,-151.0,0.000249,2]
[419758850,1775357454080,-151.92369,0.000249,2]
[419758852,1775357454089,-153.407323,0.000249,2]
[419758854,1775357454097,-151.0,0.000249,2]
[419758856,1775357454107,-151.0,0.000249,2]
[419758858,1775357454117,-151.0,0.000249,2]
[419758860,1775357454126,-151.0,0.000249,2]
[419758862,1775357454135,-239.077172,0.000249,2]
[419758864,1775357454144,-239.077172,0.000249,2]
[419758866,1775357454153,-239.077172,0.000249,2]
[419758868,1775357454162,-239.077166,0.000249,2]
[419758870,1775357454171,-236.0,0.00024943,2]
[419758872,1775357454180,-1500.0,0.00024968,2]
[419758873,1775357454189,-1500.0,0.00024968,2]
[419758875,1775357454198,-1159.50883593,0.00024968,2]
[419758877,1775357454208,-1500.0,0.00024968,2]
[419758879,1775357454217,-1500.0,0.00024968,2]
[419758881,1775357454226,-1410.58370616,0.00024968,2]
[419758883,1775357454235,-1500.0,0.00024968,2]
[419758885,1775357454244,-1639.28721945,0.00024968,2]
[419758887,1775357454254,-1500.0,0.00024968,2]
[419758889,1775357454263,-1500.0,0.00024968,2]
[419758891,1775357454272,-1500.0,0.00024968,2]
[419758893,1775357454281,-1500.0,0.00024968,2]
[419758895,1775357454290,-1500.0,0.00024968,2]
[419758897,1775357454299,-1500.0,0.00024968,2]
[419758899,1775357454308,-1500.0,0.00024968,2]
[419758901,1775357454317,-1500.0,0.00024968,2]
[419758903,1775357454327,-1500.0,0.00024968,2]
[419758905,1775357454336,-1500.0,0.00024968,2]
[419758907,1775357454345,-1500.0,0.00024968,2]
[419758909,1775357454355,-930.7,0.00024982,2]
[419758911,1775357454363,-1378.93484838,0.00024987,2]
[419758913,1775357454372,-164851.8746612,0.0002499,2]
[419758915,1775357454382,-240.70356911,0.00025,2]
[419758917,1775357454392,-171.0,0.00025,2]
[419758919,1775357454400,-166.0,0.00025,2]
[419758920,1775357454409,-203.0,0.00025,2]
[419758922,1775357454418,-1500.0,0.00025068,2]
[419758924,1775357454427,-1500.0,0.00025068,2]
[419758926,1775357454436,-1500.0,0.00025068,2]
[419758928,1775357454446,-1500.0,0.00025068,2]
[419758930,1775357454454,-1500.0,0.00025068,2]
[419758932,1775357454464,-553.87788823,0.00025068,2]
[419758934,1775357454473,-692.13691276,0.00025068,2]
[419758936,1775357454482,-1500.0,0.00025068,2]
[419758938,1775357454491,-1500.0,0.00025068,2]
[419758940,1775357454500,-394.38938917,0.00025068,2]
[419758942,1775357454509,-1500.0,0.00025068,2]
[419758944,1775357454517,-1500.0,0.00025068,2]
[419758946,1775357454526,-1500.0,0.00025068,2]
[419758948,1775357454535,-1500.0,0.00025068,2]
[419758950,1775357454545,-350.61033241,0.00025068,2]
[419758951,1775357454554,-1557.62173629,0.00025068,2]
[419758953,1775357454563,-1500.0,0.00025068,2]
[419758955,1775357454572,-1005.18249752,0.00025068,2]
[419758957,1775357454582,-2579.17784983,0.00025176,2]
[419758959,1775357454592,-390.10743976,0.00025196,2]
[419758961,1775357454600,-257.02517754,0.00025196,2]
[419758963,1775357454609,-200.52,0.00025205,6]
[419758965,1775357454619,-930.7,0.00025213,2]
[419758967,1775357454627,-250.0,0.00025221,2]
[419758969,1775357454637,-250.0,0.00025221,2]
[419758971,1775357454646,-250.0,0.00025221,2]
[419758973,1775357454655,-300.0,0.00025221,2]
[419758975,1775357454664,-1000.0,0.00025221,2]
[419758977,1775357454673,-1000.0,0.00025221,2]
[419758979,1775357454682,-1000.0,0.00025221,2]
[419758981,1775357454692,-1000.0,0.00025221,2]
[419758983,1775357454700,-1000.0,0.00025221,2]
[419758985,1775357454710,-1000.0,0.00025221,2]
[419758987,1775357454719,-1000.0,0.00025221,2]
[419758989,1775357454727,-1000.0,0.00025221,2]
[419758991,1775357454737,-1000.0,0.00025221,2]
[419758993,1775357454745,-1000.0,0.00025221,2]
[419758995,1775357454754,-963.33374147,0.00025221,2]
[419758997,1775357454763,-1000.0,0.00025221,2]
[419758999,1775357454772,-1000.0,0.00025221,2]
[419759001,1775357454782,-1117.75802016,0.00025221,2]
[419759003,1775357454790,-1000.0,0.00025221,2]
[419759005,1775357454799,-178.59500245,0.00025243,7]
[419759007,1775357454808,-160.0,0.00025272,5]
[419759008,1775357454820,-160.0,0.00025272,3]
[419759010,1775357454830,-160.0,0.00025272,5]
[419759012,1775357454839,-450.47,0.00025272,3]
[419759014,1775357454848,-161.12206926,0.00025272,5]
[419759016,1775357454857,-2500.0,0.00025292,2]
[419759018,1775357454866,-842.796565,0.00025292,2]
[419759020,1775357454876,-2500.0,0.00025329,2]
[419759022,1775357454885,-2500.0,0.00025329,2]
[419759024,1775357454895,-2500.0,0.00025329,2]
[419759026,1775357454904,-168.0,0.00025386,2]
[419759028,1775357454914,-1000.0,0.00025421,2]
[419759030,1775357454923,-1554334.7481303,0.00025444,2]
[419759032,1775357455034,-4920.7589277,0.00025444,2]
[419759181,1775357559474,500.0,0.0003487,120]
[419759182,1775357563985,324.40179381,0.0003487,120]
[419759183,1775357564273,324.40179381,0.0003487,120]
[419759184,1775357564559,324.40179381,0.0003487,120]
[419759185,1775357564859,324.40179381,0.0003487,120]
[419759186,1775357565137,324.40179381,0.0003487,120]
[419759187,1775357565440,324.40179381,0.0003487,120]
[419759188,1775357565714,324.40179381,0.0003487,120]
[419759189,1775357624568,500.0,0.0003487,120]
[419759190,1775357624785,500.0,0.0003487,120]
[419759191,1775357629495,500.0,0.0003487,120]
[419759192,1775357629770,500.0,0.0003487,120]
[419759193,1775357629997,500.0,0.0003487,120]
[419759194,1775357630514,500.0,0.0003487,120]
[419759195,1775357630725,500.0,0.0003487,120]
[419759196,1775357630945,500.0,0.0003487,120]
[419759197,1775357631171,500.0,0.0003487,120]
[419759198,1775357631498,535.77782803,0.0003487,120]
[419759199,1775357684031,162.20089689,0.0003487,120]
[419759201,1775357845631,500.0,0.00034774,120]
[419759202,1775358099913,-1000.0,0.00013699,2]
[419759204,1775358135593,-699.0,0.0001874,2]
[419759206,1775358144913,500.0,0.00034774,120]
[419759207,1775358164670,-180.08463978,0.00020124,2]
[419759208,1775358181353,-64.50157398,0.00021999,2]
[419759209,1775358181405,-286.17032986,0.00021999,2]
[419759210,1775358210455,-371.79310688,0.00021987,2]
[419759211,1775358332946,507.33,0.00034774,120]
[419759212,1775358333241,507.33,0.00034774,120]
[419759213,1775358333412,507.33,0.00034774,120]
[419759214,1775358333654,507.33,0.00034774,120]
[419759215,1775358333896,507.33,0.00034774,120]
[419759216,1775358334121,507.33,0.00034774,120]
[419759217,1775358334346,507.33,0.00034774,120]
[419759218,1775358334579,507.33,0.00034774,120]
[419759219,1775358334806,507.33,0.00034774,120]
[419759220,1775358335034,507.33,0.00034774,120]
[419759221,1775358335271,507.33,0.00034774,120]
[419759222,1775358335504,507.33,0.00034774,120]
[419759223,1775358335763,507.33,0.00034774,120]
[419759224,1775358336009,507.33,0.00034774,120]
[419759225,1775358336233,507.33,0.00034774,120]
[419759226,1775358336459,507.33,0.00034774,120]
[419759227,1775358336687,507.33,0.00034774,120]
[419759228,1775358337310,507.33,0.00034774,120]
[419759229,1775358337554,507.33,0.00034774,120]
[419759230,1775358337781,507.33,0.00034774,120]
[419759231,1775358338007,507.33,0.00034774,120]
[419759232,1775358338242,507.33,0.00034774,120]
[419759233,1775358338576,507.33,0.00034774,120]
[419759234,1775358338806,507.36470429,0.00034774,120]
[419759235,1775358453711,500.0,0.00034774,120]
[419759256,1775358631680,-338.25035148,0.000125,2]
[419759258,1775358631689,-1000.0,0.00013699,2]
[419759260,1775358631699,-1648.72549374,0.000169,2]
[419759264,1775358631735,-330.04220898,0.000169,2]
[419759266,1775358631747,-10756.11472951,0.000169,2]
[419759269,1775358631759,-1088.06501484,0.000169,2]
[419759278,1775358631840,-433.45811007,0.000169,2]
[419759280,1775358631852,-385.43688483,0.000169,2]
[419759302,1775358637999,-41206.73508431,0.000169,2]
[419759303,1775358638013,-6921.8634036,0.00018,2]
[419759304,1775358638025,-300.0,0.00021999,2]
[419759305,1775358638037,-849.0,0.00021999,2]
[419759306,1775358638049,-500.0,0.00021999,2]
[419759307,1775358638061,-500.0,0.00021999,2]
[419759308,1775358638072,-258.65857928,0.00021999,2]
[419759309,1775358638082,-500.0,0.00021999,2]
[419759310,1775358638091,-500.0,0.00021999,2]
[419759311,1775358638101,-258.07032116,0.00021999,2]
[419759312,1775358638112,-500.0,0.00021999,2]
[419759313,1775358638125,-529.72505138,0.00021999,2]
[419759314,1775358638137,-500.0,0.00021999,2]
[419759315,1775358638148,-500.0,0.00021999,2]
[419759316,1775358638158,-500.0,0.00021999,2]
[419759317,1775358638169,-500.0,0.00021999,2]
[419759318,1775358638181,-500.0,0.00021999,2]
[419759319,1775358638193,-500.0,0.00021999,2]
[419759320,1775358638206,-500.0,0.00021999,2]
[419759321,1775358638218,-500.0,0.00021999,2]
[419759322,1775358638228,-3000.0,0.00022,2]
[419759324,1775358638240,-1200.0,0.00022,2]
[419759325,1775358638251,-0.74003744,0.00022,2]
[419759326,1775358638264,-156.25996256,0.00022,2]
[419759327,1775358638275,-158.0,0.00022,2]
[419759328,1775358638286,-194.0,0.00022,2]
[419759329,1775358638297,-469.13078706,0.00022,2]
[419759330,1775358638310,-7452.40311189,0.00022,2]
[419759331,1775358638327,-3347.26749722,0.00022,2]
[419759393,1775358640718,-591.51813598,0.00022,2]
[419759400,1775358640771,-379.72335834,0.00022,2]
[419759407,1775358640825,-351.0,0.00022,2]
[419759409,1775358640839,-3760.22927981,0.00022,2]
[419759653,1775358643239,-2443.43187919,0.00022,2]
[419759656,1775358643259,-2641.93835324,0.00022,2]
[419759658,1775358643271,-1317.89139505,0.00022,2]
[419759660,1775358643283,-356.61580353,0.00022,2]
[419759776,1775358646132,-13871.0,0.00022,2]
[419759777,1775358646186,-253.7425319,0.00022,2]
[419759778,1775358646198,-9745.57708035,0.00022,2]
[419759780,1775358646345,-1269.93371423,0.00022,2]
[419759781,1775358646400,-11544.14578143,0.00022,2]
[419759787,1775358756148,500.0,0.00034774,120]
[419759791,1775358804645,500.0,0.00034774,120]
[419759792,1775358804862,500.0,0.00034774,120]
[419759793,1775358805087,500.0,0.00034774,120]
[419759794,1775358805329,500.0,0.00034774,120]
[419759795,1775358805567,500.0,0.00034774,120]
[419759796,1775358805784,605.03457227,0.00034774,120]
[419759800,1775359044963,202.9,0.00034771,120]
[419759806,1775359320407,160.0,0.000328,120]
[419759807,1775359323444,614.33342205,0.00034771,120]
[419759808,1775359361198,155.65170643,0.00034771,120]
[419759809,1775359368990,160.49049553,0.000328,120]
[419759811,1775359530868,829.98,0.00034771,120]
[419759888,1775359838135,-1000.0,0.00013699,2]
[419759889,1775359838145,-615.0,0.00013699,2]
[419759890,1775359838154,-296.62197707,0.00017084,2]
[419759891,1775359838164,-3990.359399,0.0001964,2]
[419759892,1775359838173,-300.0,0.00019898,2]
[419759893,1775359838182,-2645.43832142,0.00019899,2]
[419759894,1775359838198,-677.39378888,0.00019899,2]
[419760349,1775359843135,-396.54944253,0.00019899,2]
[419760355,1775359843190,-359.66901507,0.00019899,2]
[419760367,1775359843298,-1768.5173168,0.00019899,2]
[419760369,1775359843308,-177.315983,0.00019998,2]
[419760371,1775359843318,-123.52818738,0.00020124,2]
[419760373,1775359843329,-56.56185764,0.00020124,2]
[419760375,1775359843339,-177.9051872,0.00020333,2]
[419760377,1775359843348,-1794.74083373,0.00020517,2]
[419760658,1775359846158,-3289.75326387,0.00020517,2]
[419760660,1775359846167,-420.0,0.00021669,2]
[419760662,1775359846176,-172.33440528,0.00021799,2]
[419760664,1775359846186,-6185.70860391,0.00021799,2]
[419760666,1775359846195,-182.90519551,0.00021886,2]
[419760668,1775359846205,-597.19198364,0.00021898,2]
[419760670,1775359846214,-597.19198364,0.00021898,2]
[419760673,1775359846224,-597.19198364,0.00021898,2]
[419760674,1775359846234,-597.19198364,0.00021898,2]
[419760676,1775359846243,-597.19198364,0.00021898,2]
[419760678,1775359846254,-597.19198364,0.00021898,2]
[419760680,1775359846263,-597.19198364,0.00021898,2]
[419760683,1775359846274,-597.19198364,0.00021898,2]
[419760685,1775359846283,-420.19050215,0.00021898,2]
[419760687,1775359846295,-177.00148149,0.00021898,2]
[419760689,1775359846304,-597.19198364,0.00021898,2]
[419760691,1775359846314,-597.19198364,0.00021898,2]
[419760693,1775359846323,-597.19198364,0.00021898,2]
[419760695,1775359846332,-597.19198364,0.00021898,2]
[419760697,1775359846342,-597.19198364,0.00021898,2]
[419760699,1775359846352,-597.19198364,0.00021898,2]
[419760701,1775359846361,-597.19198364,0.00021898,2]
[419760703,1775359846370,-597.19198364,0.00021898,2]
[419760705,1775359846379,-597.19198364,0.00021898,2]
[419760707,1775359846388,-597.19198364,0.00021898,2]
[419760709,1775359846398,-597.19198364,0.00021898,2]
[419760711,1775359846407,-597.19198364,0.00021898,2]
[419760713,1775359846416,-597.19198364,0.00021898,2]
[419760715,1775359846425,-597.19198364,0.00021898,2]
[419760717,1775359846435,-597.19198364,0.00021898,2]
[419760719,1775359846445,-597.19198364,0.00021898,2]
[419760721,1775359846454,-597.19198364,0.00021898,2]
[419760723,1775359846463,-597.19198364,0.00021898,2]
[419760725,1775359846473,-597.19198364,0.00021898,2]
[419760727,1775359846485,-597.19198364,0.00021898,2]
[419760729,1775359846495,-597.19198364,0.00021898,2]
[419760731,1775359846505,-597.19198364,0.00021898,2]
[419760733,1775359846515,-597.19198364,0.00021898,2]
[419760735,1775359846524,-597.19198364,0.00021898,2]
[419760737,1775359846533,-597.19198364,0.00021898,2]
[419760739,1775359846542,-597.19198364,0.00021898,2]
[419760741,1775359846552,-597.19198364,0.00021898,2]
[419760743,1775359846561,-597.19198364,0.00021898,2]
[419760745,1775359846571,-597.19198364,0.00021898,2]
[419760747,1775359846580,-597.19198364,0.00021898,2]
[419760749,1775359846589,-597.19198364,0.00021898,2]
[419760751,1775359846598,-597.19198364,0.00021898,2]
[419760753,1775359846608,-597.19198364,0.00021898,2]
[419760755,1775359846617,-597.19198364,0.00021898,2]
[419760757,1775359846627,-597.19198364,0.00021898,2]
[419760759,1775359846637,-597.19198364,0.00021898,2]
[419760761,1775359846646,-597.19198364,0.00021898,2]
[419760763,1775359846656,-597.19198364,0.00021898,2]
[419760765,1775359846665,-597.19198364,0.00021898,2]
[419760767,1775359846675,-597.19198364,0.00021898,2]
[419760770,1775359846685,-597.19198364,0.00021898,2]
[419760772,1775359846695,-597.19198364,0.00021898,2]
[419760774,1775359846704,-597.19198364,0.00021898,2]
[419760776,1775359846714,-273.24168314,0.00021898,2]
[419760778,1775359846728,-323.9503005,0.00021898,2]
[419760780,1775359846737,-597.19198364,0.00021898,2]
[419760782,1775359846747,-597.19198364,0.00021898,2]
[419760784,1775359846756,-597.19198364,0.00021898,2]
[419760786,1775359846766,-597.19198364,0.00021898,2]
[419760788,1775359846775,-597.19198364,0.00021898,2]
[419760790,1775359846784,-597.19198364,0.00021898,2]
[419760792,1775359846794,-597.19198364,0.00021898,2]
[419760794,1775359846803,-597.19198364,0.00021898,2]
[419760796,1775359846812,-597.19198364,0.00021898,2]
[419760808,1775359846821,-597.19198364,0.00021898,2]
[419760811,1775359846932,-138.33700449,0.00021898,2]
[419761793,1775360601912,5481.2686072,0.00032856,120]
[419761794,1775360756640,870.4353144,0.000328,120]
[419761795,1775360814346,500.0,0.0003287,120]
[419761812,1775361032117,-834.71197419,0.00013699,2]
[419761813,1775361032128,-165.28802581,0.00013699,2]
[419761814,1775361032137,-300.0,0.00019396,2]
[419761815,1775361032147,-1558.55728919,0.00019397,2]
[419762033,1775361041564,-596.02841141,0.00019397,2]
[419762035,1775361041574,-245.49747256,0.00019397,2]
[419762190,1775361043562,-398.62464812,0.00019397,2]
[419762497,1775361046560,-984.7182516,0.00019397,2]
[419762520,1775361046770,-1470.66043317,0.00019397,2]
[419762522,1775361046780,-457.08858368,0.00019397,2]
[419762524,1775361046789,-713.48671109,0.00019397,2]
[419762526,1775361046798,-797.2319288,0.00020148,3]
[419762528,1775361046808,-1859.16599892,0.00020248,3]
[419762530,1775361046817,-693.52433735,0.00020418,2]
[419762533,1775361046827,-1082.54814533,0.00020418,2]
[419762535,1775361046837,-293.74306004,0.00020418,2]
[419762537,1775361046846,-458.51455778,0.00020418,2]
[419762539,1775361046856,-1549.36852843,0.00020448,3]
[419763098,1775361269005,21734.06048,0.00034769,120]
[419763099,1775361306742,100000.0,0.00034769,120]
[419763112,1775361576565,571.13,0.0003,120]
[419763113,1775361647863,1713.3,0.00032876,120]
[419763114,1775361699699,-300.0,0.00013698,2]
[419763115,1775361699725,-212.86903976,0.00013699,2]
[419763116,1775361699763,-787.13096024,0.00013699,2]
[419763121,1775361728852,-212.86903976,0.00013698,2]
[419763122,1775361728864,-87.13096024,0.00013698,2]
[419763123,1775361728873,-212.86903976,0.00013699,2]
[419763126,1775361884131,174.12157667,0.00034782,120]
[419763127,1775361884428,174.12157667,0.00034782,120]
[419763128,1775362004114,174.12157666,0.00034782,120]
[419763131,1775362200287,200.0,0.00034782,120]
[419763132,1775362200713,1965.21119025,7.6e-05,2]
[419763145,1775362232244,-300.0,0.00013698,2]
[419763146,1775362232255,-238.425189,0.00013698,2]
[419763147,1775362232266,-372.19726721,0.00013698,2]
[419763148,1775362232298,-4.37754379,0.00013698,2]
[419763149,1775362232308,-287.13096024,0.00013699,2]
[419763150,1775362232430,-146.72646525,0.00013699,2]
[419763151,1775362232448,-353.27353475,0.00013699,2]
[419763152,1775362232458,-500.0,0.00013699,2]
[419763153,1775362232468,-158.28274191,0.00013699,2]
[419763154,1775362232477,-1000.0,0.00013699,2]
[419763155,1775362232486,-500.0,0.000139,2]
[419763156,1775362232496,-300.0,0.00013972,2]
[419763157,1775362232505,-300.0,0.00013972,2]
[419763158,1775362232514,-300.0,0.00013972,2]
[419763159,1775362232523,-300.0,0.00013972,2]
[419763160,1775362232532,-300.0,0.00013972,2]
[419763161,1775362232542,-300.0,0.00013972,2]
[419763162,1775362232552,-300.0,0.00013972,2]
[419763163,1775362232561,-300.0,0.00013972,2]
[419763164,1775362232570,-300.0,0.00013972,2]
[419763165,1775362232580,-300.0,0.00013972,2]
[419763166,1775362232590,-300.0,0.00013972,2]
[419763167,1775362232599,-300.0,0.00013972,2]
[419763168,1775362232609,-300.0,0.00013972,2]
[419763169,1775362232619,-300.0,0.00013972,2]
[419763170,1775362232629,-300.0,0.00013972,2]
[419763171,1775362232638,-500.0,0.00014,2]
[419763172,1775362232647,-373.88117683,0.00014,2]
[419763173,1775362232657,-1000.0,0.00014448,2]
[419763174,1775362232666,-1500.0,0.00014996,2]
[419763175,1775362232675,-258.31159428,0.00015,2]
[419763176,1775362232685,-420.0,0.00015012,2]
[419763177,1775362232694,-2000.0,0.00015544,2]
[419763178,1775362232703,-2259.25806983,0.00016092,2]
[419763179,1775362232713,-587.0,0.00016451,2]
[419763180,1775362232722,-823.0,0.00018028,2]
[419763181,1775362232731,-177.315983,0.00018904,2]
[419763182,1775362232741,-500.0,0.00019158,2]
[419763183,1775362232750,-2512.784095,0.00019178,2]
[419763184,1775362232759,-703.79365578,0.00019178,2]
[419763198,1775362238447,-5000.0,0.00018986,2]
[419763199,1775362238457,-151.0,0.00019178,2]
[419763200,1775362238467,-151.0,0.00019178,2]
[419763201,1775362238476,-151.0,0.00019178,2]
[419763202,1775362238486,-1808.99043922,0.00019178,2]
[419763203,1775362238495,-2512.784095,0.00019178,2]
[419763204,1775362238505,-2512.784095,0.00019178,2]
[419763205,1775362238514,-2512.784095,0.00019178,2]
[419763206,1775362238524,-2512.784095,0.00019178,2]
[419763207,1775362238533,-2512.784095,0.00019178,2]
[419763208,1775362238543,-2512.784095,0.00019178,2]
[419763209,1775362238552,-862.432876,0.00019178,2]
[419763210,1775362238561,-862.432876,0.00019178,2]
[419763211,1775362238570,-862.432876,0.00019178,2]
[419763212,1775362238579,-862.432876,0.00019178,2]
[419763213,1775362238588,-862.432876,0.00019178,2]
[419763214,1775362238598,-862.432876,0.00019178,2]
[419763215,1775362238607,-862.432876,0.00019178,2]
[419763216,1775362238616,-862.432876,0.00019178,2]
[419763217,1775362238626,-508.36852911,0.00019178,2]
[419763218,1775362238635,-1000.0,0.00019706,2]
[419763219,1775362238645,-1152.0,0.00019757,2]
[419763220,1775362238654,-500.0,0.00019829,2]
[419763221,1775362238663,-500.0,0.00019829,2]
[419763222,1775362238673,-500.0,0.00019829,2]
[419763223,1775362238682,-500.0,0.00020234,2]
[419763224,1775362238691,-500.0,0.00020234,2]
[419763225,1775362238701,-500.0,0.00020234,2]
[419763226,1775362238710,-500.0,0.00020234,2]
[419763227,1775362238720,-500.0,0.00020234,2]
[419763228,1775362238730,-500.0,0.00020234,2]
[419763229,1775362238750,-500.0,0.00020234,2]